Workbook

Sheet 3
A1: Limity wydatków na wieloletnie przedsięwzięcia planowane do poniesienia w 2026 roku
A3: Lp. | B3: Dział | C3: Rozdz. | D3: Nazwa przedsięwzięcia | E3: Łączne nakłady finansowe | F3: Planowane wydatki | O3: Jednostka org. realizująca zadanie lub koordynująca program
F4: rok budżetowy 2026 (7+8+9+10+12+13) | G4: w tym źródła finansowania
G5: dochody własne jst | H5: niewykorzystane środki pieniężne na r-ku bieżącym budżetu określone w odrębnych ustawach § 905 | I5: przychody wynikające z rozliczenia środkówokreśl.w art. 5 ust.1 pkt 2 u.f.p i dotacji na realizację przedsięwz.finans.z udziałem tych środków § 906 | J5: kredyty i pożyczki | K5: w tym: | M5: dotacje i środki pochodzące z innych źr.* | N5: środki wymienione w art. 5 ust. 1 pkt 2 i 3 u.f.p.
K6: kredyty i pożyczki zaciągnięte na realizację zadania pod refundację wydatków
A9: 1 | B9: 2 | C9: 3 | D9: 4 | E9: 5 | F9: 6 | G9: 7 | H9: 8 | I9: 9 | J9: 10 | K9: 11 | M9: 12 | N9: 13 | O9: 14
D10: wydatki bieżące | E10: =SUM(E11) -> 88215.5 | F10: =SUM(F11) -> 31252.72 | G10: 0 | H10: 0 | I10: 31252.72 | J10: 0 | K10: 0 | L10: 0 | M10: 0 | N10: 0
A11: 1 | B11: 720 | C11: 72095 | D11: Projekt Cyberbezpieczny Samorząd | E11: 88215.5 | F11: 31252.72 | I11: 31252.72 | O11: Urząd Gminy
D12: wydatki majątkowe | E12: =SUM(E13:E24) -> 36581233.32 | F12: =SUM(F13:F24) -> 16023670.02 | G12: 1686365 | H12: 0 | I12: 205455.02 | J12: 2047500 | K12: 0 | L12: 0 | M12: 0 | N12: 12084350
A13: 1 | B13: 600 | C13: 60016 | D13: Budowa drogi w miejscowości Występa | E13: 200000 | F13: 10000 | G13: 10000 | O13: Urząd Gminy
A14: 2 | B14: 600 | C14: 60016 | D14: Budowa drogi dojazdowej do zbiornika wodnego Jaśle | E14: 6807162.12 | F14: 550000 | J14: 550000 | O14: Urząd Gminy
A15: 3 | B15: 600 | C15: 60016 | D15: Budowa drogi w miejscowości Podzagnańszcze Dołki | E15: 380000 | F15: 48000 | G15: 48000 | O15: Urząd Gminy
A16: 4 | B16: 600 | C16: 60016 | D16: Budowa drogi Ostrów | E16: 600000 | F16: 40000 | G16: 40000 | O16: Urząd Gminy
A17: 5 | B17: 600 | C17: 60016 | D17: Modernizacja drogi w miejscowości Jęgrzna | E17: 400000 | F17: 18000 | G17: 18000 | O17: Urząd Gminy
A18: 6 | B18: 630 | C18: 63095 | D18: Wzmocnienie potencjału gmin Związku Gmin Gór Świętokrzyskich w zakresie rekreacyjno -sportowej poprzez zagospodarowanie południowej strony zbiornika Jaśle | E18: 60000 | F18: 60000 | J18: 60000 | O18: ZGGŚ
A19: 7 | B19: 700 | C19: 70095 | D19: Przebudowa, modernizacja i dostosowanie budynku do pełnienia funkcji "Centrum dziedzictwa i edukacji kreatywnej w Zaleziance" | E19: 6000000 | F19: 750000 | L19: B | N19: 750000 | O19: Urząd Gminy
A20: 8 | B20: 720 | C20: 72095 | D20: Projekt Cyberbezpieczny Samorząd | E20: 318249.5 | F20: 205455.02 | I20: 205455.02 | O20: Urząd Gminy
A21: 9 | B21: 900 | C21: 90001 | D21: Rozbudowa istniejącej oczyszczalni ścieków w Kamionkach wraz z modernizacją części osadowej | E21: 21445821.7 | F21: 14297215 | G21: 1525365 | J21: 1437500 | L21: B | N21: 11334350 | O21: Urząd Gminy
A22: 10 | B22: 900 | C22: 90015 | D22: Budowa oświetlenia Gózd | E22: 250000 | F22: 15000 | G22: 15000 | O22: Urząd Gminy
A23: 11 | B23: 900 | C23: 90015 | D23: Budowa oświetlenia Klonów | E23: 50000 | F23: 15000 | G23: 15000 | O23: Urząd Gminy
A24: 12 | B24: 900 | C24: 90015 | D24: Budowa oświetlenia Podzagnańszcze | E24: 70000 | F24: 15000 | G24: 15000 | O24: Urząd Gminy
A25: Ogółem | E25: =SUM(E10+E12) -> 36669448.82 | F25: =SUM(F10+F12) -> 16054922.74 | G25: 1686365 | H25: 0 | I25: 236707.74 | J25: 2047500 | K25: 0 | L25: 0 | M25: 0 | N25: 12084350 | O25: =SUM(O12) -> 0
A27: A. Dotacje i środki z budżetu państwa (np. od Wojewody, MEN)
A28: B. Środki i dotacje otrzymane od innych jst oraz innych jednostek zaliczanych do sektora finansów publicznych
A29: C. Inne źródła

Sheet 4
A2: Zadania inwestycyjne roczne w 2026 r.
M3: w złotych
A4: Lp. | B4: Dział | C4: Rozdz. | D4: Nazwa zadania inwestycyjnego | E4: Planowane wydatki | M4: Jednostka org. realizująca zadanie lub koordynująca program
E5: rok budżetowy 2026 (6+7+8+9+10+11) | F5: w tym źródła finansowania
F6: dochody własne jst | G6: niewykorzystane środki pieniężne na r-ku bieżącym budżetu określone w odrębnych ustawach § 905 | H6: kredyty i pożyczki | I6: w tym: | J6: dotacje i środki pochodzące z innych źr.* | L6: środki wymienione w art. 5 ust. 1 pkt 2 i 3 u.f.p.
I7: kredyty i pożyczki zaciągnięte na realizację zadania pod refundację wydatków
A10: 1 | B10: 2 | C10: 3 | D10: 4 | E10: 5 | F10: 6 | G10: 7 | H10: 8 | I10: 9 | J10: 10 | L10: 11 | M10: 12
A11: 1 | B11: 700 | C11: 70095 | D11: Zagospodarowanie otoczenia turystycznego w miejscowości Klonów | E11: 150000 | F11: 23000 | J11: C | K11: 127000 | M11: Stowarzyszenie LGD Bieliny
D12: Ogółem | E12: =SUM(E11:E11) -> 150000 | F12: 23000 | G12: 0 | H12: 0 | I12: 0 | J12: 0 | K12: 127000 | L12: 0
B14: A. Dotacje i środki z budżetu państwa (np. od Wojewody, MEN)
B15: B. Środki i dotacje otrzymane od innych jst oraz innych jednostek zaliczanych do sektora finansów publicznych
B16: C. Inne źródła

Sheet 5
A1: Przychody i rozchody budżetu w 2026 r.
D3: w złotych
A4: Lp. | B4: Treść | C4: Klasyfikacja § | D4: Kwota
A7: 1 | B7: 2 | C7: 3 | D7: 4
A8: Przychody ogółem: | D8: =SUM(D9:D27) -> 4907551.01
A9: 1. | B9: Kredyty zaciągnięte na rynku krajowym, w tym: | C9: § 952 | D9: 3500000
A10: 1.1 | B10: zaciągnięte w związku z umową zawartą z podmiotem dysponującym środkami pochodzącymi z budżetu U.E. | C10: § 952
A11: 2. | B11: Pożyczki zaciągnięte na rynku krajowym | C11: § 952
A12: 3. | B12: Przychody z zaciągniętych pożyczek na finansowanie zadań realizowanych z udziałem środków pochodzących z budżetu U.E. | C12: § 903
A13: 4. | B13: Przychody ze spłat pożyczek udzielonych na finansowanie zadań realizowanych z udziałem środków pochodzących z budżetu U.E. | C13: § 902
A14: 5. | B14: Pożyczki i kredyty zaciągnięte na rynku zagranicznym, w tym: | C14: § 953
A15: 5.1 | B15: zaciągnięte w związku z umową zawartą z podmiotem dysponującym środkami pochodzącymi z budżetu U.E.
A16: 6. | B16: Papiery wartościowe ( obligacje) których zbywalność jest ograniczona, w tym: | C16: § 931
A17: 6.1 | B17: emitowane w związku z umową zawartą z podmiotami dysponującymi środkami pochodzącymi z budżetu U.E. | C17: § 931
A18: 7. | B18: Papiery wartościowe ( obligacje) dopuszczone do obrotu zorganizowanego, czyli takie, dla których istnieje płynny rynek wtórny | C18: § 931
A19: 8. | B19: Przychody z tytułu zaciągniętych pożyczek i kredytów oraz wyemitowanych papierów wartościowych na spłatę wcześniej zaciągniętych zobowiązań | C19: § 907
A20: 9. | B20: Nadwyżka z lat ubiegłych ( pomniejszona o środki , o których mowa w art. 217 ust.2 pkt 8 u.f.p) | C20: § 957
A21: 10. | B21: Wolne środki art. 217 ust.2 pkt.6 u.f.p | C21: § 950 | D21: 935601
A22: 11. | B22: Spłata pożyczek udzielonych | C22: § 951
A23: 12. | B23: Przychody z niewykorzystanych środków pieniężnych na rachunku bieżącym budżetu, wynikających z rozliczenia dochodów i wydatków nimi finansowanych związanych ze szczególnymi zasadami wykonywania budżetu określonymi w odrębnych ustawach | C23: § 905 | D23: 235242.27
A24: 13. | B24: Przychody wynikające z rozliczenia środków określonych w art. 5 ust.1 pkt. 2 u.f.p. i dotacji na realizację programu, projektu lub zadania finansowanego z udziałem tych środków | C24: § 906 | D24: 236707.74
A25: 14. | B25: Przelewy z rachunku lokat | C25: § 994
A26: 15. | B26: Prywatyzacja majątku j.s.t | C26: § 941 -44
A27: 16. | B27: Przychody z tytułu innych rozliczeń krajowych art. 91a ust. 1 u.f.p. | C27: § 955
A28: Rozchody ogółem: | D28: =SUM(D29:D31) -> 1452500
A29: 1. | B29: Spłaty otrzymanych kredytów krajowych, w tym: | C29: § 992 | D29: 1452500
A30: 1.1 | B30: zaciągniętych w związku z zawarciem umowy z podmiotem dysponującym środkami pochodzącymi z budżetu U. E | C30: § 992
A31: 2. | B31: Spłaty otrzymanych pożyczek krajowych | C31: § 992
A32: 3. | B32: Spłaty pożyczek otrzymanych na finansowanie zadań realizowanych z udziałem środków pochodzących z budżetu U. E | C32: § 963
A33: 4. | B33: Pożyczki udzielone na finansowanie zadań realizowanych z udziałem środków pochodzących z budżertu U.E. | C33: § 962
A34: 5. | B34: Spłaty pożyczek i kredytów zagranicznych, w tym: | C34: § 993
A35: 5.1 | B35: zaciągniętych w związku z zawarciem umowy z podmiotem dysponującym środkami pochodzącymi z U.E. | C35: § 993
A36: 6. | B36: Wykup obligacji komunalnych, których zdolność jest ograniczona, w tym: | C36: § 982
A37: 6.1 | B37: wyemitowanych w związku z zawarciem umowy z podmiotem dysponującym środkami pochodzącymoi z budżetu U.E. | C37: § 982
A38: 7. | B38: Wykup papierów wartościowych dopuszczonych do obrotu zorganizowanego, czyli takie,dla których istnieje płynny rynek wtórny | C38: § 982
A39: 8. | B39: Wcześniejsza spłata istniejącego długu jst | C39: § 965
A40: 9. | B40: Udzielone pożyczki | C40: § 991
A41: 10. | B41: Przelewy na rachunki lokat | C41: § 994
A42: 11. | B42: Rozchody z tytułu innych rozliuczeń krajowych art. 91 a ust.1 u.f.p. | C42: § 955

Sheet 6
A1: Dochody i wydatki związane z realizacją zadań z zakresu administracji rządowej i innych zadań zleconych odrębnymi ustawami w 2026 r.
A4: Dział | B4: Rozdział | C4: § | D4: Dotacje ogółem | E4: Wydatki na 2026 r. | F4: z tego:
F5: Wydatki bieżące | G5: z tego: | L5: Wydatki majątkowe | M5: z tego:
G6: Wydatki jednostek budżetowych | I6: Dotacje na zadania bieżące | J6: Świadczenia na rzecz osób fizycznych | K6: Wydatki na programy finansowane z udziałem środków, o których mowa w art. 5 ust. 1 pkt 2 i 3 | M6: inwestycje i zakupy inwestycyjne | N6: w tym: | O6: zakup i objęcie akcji i udziałów | P6: wniesienie wkładów do spółek prawa handlowego
G7: wynagrodzenia i składki od nich naliczane | H7: wydatki związane z realizacją statutowych zadań | N7: wydatki na programy finansowane z udziałem środków, o których mowa w art. 5 ust. 1 pkt 2 i 3
A8: 1 | B8: 2 | C8: 3 | D8: 4 | E8: 5 | F8: 6 | G8: 7 | H8: 8 | I8: 9 | J8: 10 | K8: 11 | L8: 12 | M8: 13 | N8: 14 | O8: 15 | P8: 16
A9: 750 | B9: 75011 | C9: 2010 | D9: 93283 | E9: =SUM(F9+L9) -> 93283 | F9: =SUM(G9:K9) -> 93283 | G9: 93283 | L9: =SUM(M9+O9+P9) -> 0
A10: 751 | B10: 75101 | C10: 2010 | D10: 1076 | E10: 1076 | F10: 1076 | G10: 1076
A11: 852 | B11: 85228 | C11: 2010 | D11: 7360 | E11: 7360 | F11: 7360 | H11: 7360 | L11: 0
A12: 852 | B12: 85295 | C12: 2010 | D12: 5296 | E12: 5296 | F12: 5296 | H12: 5296 | L12: 0
A13: 855 | B13: 85502 | C13: 2010 | D13: 2966681 | E13: 2966681 | F13: 2966681 | G13: 519328 | J13: 2447353 | L13: 0
A14: 855 | B14: 85513 | C14: 2010 | D14: 63674 | E14: 63674 | F14: 63674 | H14: 63674 | L14: 0
A15: Ogółem | D15: =SUM(D9:D14) -> 3137370 | E15: =SUM(E9:E14) -> 3137370 | F15: 3137370 | G15: 613687 | H15: 76330 | I15: 0 | J15: 2447353 | K15: 0 | L15: 0 | M15: 0 | N15: 0 | O15: 0 | P15: 0

Sheet 7
D3: Dochody i wydatki związane z realizacją zadań z zakresu administracji rządowej realizowanych na podstawie porozumień
D4: z organami administracji rządowej w 2026 r.
B7: Dział | C7: Rozdział | D7: § | E7: Dotacje ogółem | F7: Wydatki | H7: z tego:
F8: ogółem | H8: Wydatki bieżące | J8: z tego: | T8: Wydatki majątkowe | V8: z tego:
J9: Wydatki jednostek budżetowych | N9: Dotacje na zadania bieżące | P9: Świadczenia na rzecz osób fizycznych | R9: Wydatki na programy finansowane z udziałem środków, o których mowa w art. 5 ust. 1 pkt 2 i 3 | V9: inwestycje i zakupy inwestycyjne | X9: w tym:
J10: wynagrodzenia i składki od nich naliczane | L10: wydatki związane z realizacją statutowych zadań | X10: wydatki na programy finansowane z udziałem środków, o których mowa w art. 5 ust. 1 pkt 2 i 3
B11: 1 | C11: 2 | D11: 3 | E11: 4 | F11: 5 | H11: 6 | J11: 7 | L11: 8 | N11: 9 | P11: 10 | R11: 11 | T11: 12 | V11: 13 | X11: 14
B12: 710 | C12: 71035 | D12: 2020 | E12: 20000 | F12: 20000 | H12: =SUM(J12:S12) -> 20000 | L12: 20000
B19: Ogółem | E19: =SUM(E12:E18) -> 20000 | F19: =SUM(F12:G18) -> 20000 | H19: =SUM(H12:I18) -> 20000 | L19: =SUM(L12:M18) -> 20000

Sheet 8
A1: Dochody i wydatki związane z realizacją zadań realizowanych na podstawie porozumień (umów) między jednostkami samorządu terytorialnego w 2026 r.
A2: Nazwa zadania | B2: Dział | C2: Rozdział | D2: § | E2: Dochody ogółem | F2: Wydatki ogółem | G2: § | H2: z tego:
H3: Wydatki bieżące | I3: z tego: | P3: Wydatki majątkowe | Q3: z tego:
I4: Wydatki jednostek budżetowych | K4: Dotacje na zadania bieżące | L4: Świadczenia na rzecz osób fizycznych | M4: Wydatki na programy finansowane z udziałem środków, o których mowa w art. 5 ust. 1 pkt 2 i 3 | N4: Wydatki na obsługę długu | O4: Wydatki | Q4: Inwestycje | R4: w tym: | S4: zakup i objęcie akcji i udziałów | T4: wniesienie wkładów
O5: z tytułu poręczeń | Q5: i zakupy inwestycyjne | T5: do spółek prawa handlowego
I6: wynagrodzenia i składki od nich naliczane | J6: wydatki związane z realizacją statutowych zadań | O6: i gwarancji | R6: wydatki na programy finansowane z udziałem środków,
A7: 1 | B7: 2 | C7: 3 | D7: 4 | E7: 5 | F7: 6 | G7: 7 | H7: 8 | I7: 9 | J7: 10 | K7: 11 | L7: 12 | M7: 13 | N7: 14 | O7: 15 | P7: 16 | Q7: 17 | R7: 18 | S7: 19 | T7: 20
A8: I. Dochody i wydatki związane z realizacją zadań realizowanych wspólnie z innymi jednostkami samorządu terytorialnego | F8: =SUM(F9:F10) -> 113000 | G8: =SUM(G9:G10) -> 0 | H8: 53000 | I8: 0 | J8: 0 | K8: 53000 | L8: 0 | M8: 0 | N8: 0 | O8: 0 | P8: 60000 | Q8: 60000 | R8: 0 | S8: 0 | T8: 0 | U8: 0
A9: Dopłata do wozokilometra dla ZTM Kielce | B9: 600 | C9: 60004 | D9: 2310 | F9: 53000 | H9: 53000 | K9: 53000
A10: Wzmocnienie potencjału gmin Związku Gmin Gór Świętokrzyskich w zakresie rekreacyjno-sportowej poprzez zagospodarowanie poludniowej strony zbiornika Jaśle | B10: 630 | C10: 63095 | D10: 6650 | F10: 60000 | P10: 60000 | Q10: 60000
A11: II. Dochody i wydatki związane z realizacją zadań przejętych przez Gminę do realizacji w drodze umowy lub porozumienia | F11: 0 | G11: 0 | H11: 0 | I11: 0 | J11: 0 | K11: 0 | L11: 0 | M11: 0 | N11: 0 | O11: 0 | P11: 0 | Q11: 0 | R11: 0 | S11: 0 | T11: 0 | U11: =SUM(#REF!) -> 
A13: III. Dochody i wydatki związane z pomocą rzeczową lub finansową realizowaną na podstawie porozumień między j.s.t. | F13: =SUM(F14:F14) -> 0 | G13: 0 | H13: 0 | I13: 0 | J13: 0 | K13: 0 | L13: 0 | M13: 0 | N13: 0 | O13: 0 | P13: 0 | Q13: 0 | R13: 0 | S13: 0 | T13: 0
A15: Ogółem | F15: =SUM(F8+F11+F13) -> 113000 | G15: 0 | H15: 53000 | I15: 0 | J15: 0 | K15: 53000 | L15: 0 | M15: 0 | N15: 0 | O15: 0 | P15: 60000 | Q15: 60000 | R15: 0 | S15: 0 | T15: 0

Sheet 9
B1: Dochody i wydatki związane ze szczególnymi zasadami wykonywania budżetu wynikającymi z odrębnych ustaw w 2026 r.
A3: L.p. | B3: Wyszczególnienie | C3: Dochody | G3: Wydatki
C4: Dział | D4: Rozdział | E4: § | F4: Kwota | G4: Dział | H4: Rozdział | I4: § | J4: Kwota | K4: w tym finansowane przychodami w § 905
A5: 1 | B5: 2 | C5: 3 | D5: 4 | E5: 5 | F5: 6 | G5: 7 | H5: 8 | I5: 9 | J5: 10 | K5: 11
A6: 1. | B6: Dochody z tytułu opłat za gospodarowanie odpadami komunalnymi oraz wydatki na cele związane z pokrywaniem kosztów funkcjonowania systemu gospodarowania odpadami komunalnymi | C6: 900 | D6: 90002 | E6: 0490 | F6: 1100000 | G6: 900 | H6: 90002 | J6: 1279087.08 | K6: 179087.08
F7: =SUM(F6) -> 1100000 | J7: =SUM(J6) -> 1279087.08 | K7: =SUM(K6) -> 179087.08
A8: 2. | B8: Dochody z tytułu wydawania zezwoleń na sprzedaż napojów alkoholowych oraz wydatki na realizację zadań określonych w programie profilaktyki i rozwiązywania problemów alkoholowych oraz programie przeciwdziałania narkomanii | C8: 756 | D8: 75618 | E8: 0480 | F8: 66500 | G8: 851 | H8: 85154 | J8: 121655.19 | K8: 56155.19
G9: 851 | H9: 85153 | J9: 1000
F10: =SUM(F8:F9) -> 66500 | J10: =SUM(J8:J9) -> 122655.19 | K10: =SUM(K8:K9) -> 56155.19
A11: 3. | B11: Dochody z tytułu dodatkowej opłaty za wydawane zezwolenia na sprzedaż napojów alkoholowych w opakowaniach nieprzekraczających 300 ml oraz wydatki z przeznaczeniem na działania mające na celu realizację lokalnej międzysektorowej polityki przeciwdziałania negatywnym skutkom spożywania alkoholu
F12: =SUM(F11) -> 0 | J12: =SUM(J11) -> 0
A13: 4. | B13: Dochody z tytułu opłat za korzystanie ze środowiska i administracyjnych kar pieniężnych oraz wydatki na finansowanie systemu ochrony środowiska | C13: 900 | D13: 90019 | E13: 069 | F13: 5000 | G13: 900 | H13: 90019 | J13: 5000
F14: =SUM(F13) -> 5000 | J14: =SUM(J13) -> 5000
A15: 5. | B15: Dochody z tytułu opłat za korzystanie z przystanków komunikacyjnych lub dworców oraz wydatki na utrzymanie przystanków, dworców i realizację zadań w zakresie publicznego transportu zbiorowego | C15: 600 | D15: 60020 | E15: 049 | F15: 3000 | G15: 600 | H15: 60020 | J15: 3000
F16: =SUM(F15) -> 3000 | J16: =SUM(J15) -> 3000
J18: Razem | K18: =SUM(K7+K10+K12+K14+K16) -> 235242.27

Sheet 10
A1: Plan przychodów i kosztów samorządowych zakładów budżetowych na 2026 r.
L4: w złotych
A5: Lp. | B5: Wyszczególnienie | C5: Dział | D5: Rozdział | E5: Przychody | J5: Koszty
E6: ogółem | F6: w tym: dotacja z budżetu | J6: ogółem | K6: w tym:
F7: przedmiotowa | G7: na pierwsze wyposażenie | H7: celowa na zadania realizowane z udziałem środków UE | I7: celowa na inwestycje | K7: wpłata do budżetu | L7: majątkowe
A9: 1 | B9: 2 | C9: 3 | D9: 4 | E9: 6 | F9: 7 | G9: 9 | H9: 10 | I9: 11 | J9: 12 | K9: 13 | L9: 14
A10: 1 | B10: Dostarczanie wody | C10: 400 | D10: 40002 | E10: 1400000 | J10: 547000
A11: 2 | B11: Zimowe utrzymanie dróg gminnych | C11: 600 | D11: 60016 | E11: 300000 | F11: 300000 | J11: 220000
A12: 3 | B12: Gospodarka ściekowa i ochrona wód | C12: 900 | D12: 90001 | E12: 1060700 | J12: 464000
A13: 4 | B13: Zakład Gospodarki Komunalnej | C13: 900 | D13: 90017 | E13: 450000 | J13: 1979700
A14: Ogółem | E14: =SUM(E10:E13) -> 3210700 | F14: 300000 | G14: 0 | H14: 0 | I14: 0 | J14: 3210700 | L14: =SUM(L10:L13) -> 0

Sheet 11
A1: Plan dochodów gromadzonych na wydzielonym rachunku jednostki budżetowej wydatki nimi finansowane w 2026 r.
F4: w złotych
A5: Lp. | B5: Wyszczególnienie | C5: Dział | D5: Rozdział | E5: Dochody | F5: Wydatki
A6: 1 | B6: 2 | C6: 3 | D6: 4 | E6: 6 | F6: 7
A7: 1. | B7: Zespół Szkolno Przedszkolny w Łącznej | C7: 801 | D7: 80101 | E7: 234950 | F7: 234950
A8: 2. | B8: Zespół Szkolno Przedszkolny w Łącznej | C8: 801 | D8: 80104 | E8: 177840 | F8: 177840
A9: 3. | B9: Zespół Szkół w Goździe | C9: 801 | D9: 80101 | E9: 65400 | F9: 65400
A10: 4. | B10: Zespół Szkół w Goździe | C10: 801 | D10: 80104 | E10: 70000 | F10: 70000
A11: Ogółem | E11: =SUM(E7:E10) -> 548190 | F11: =SUM(F7:F10) -> 548190

Sheet 12
A2: Dotacje przedmiotowe w 2026 roku
G3: w złotych
A4: Lp. | B4: Dział | C4: Rozdział | D4: § | E4: Nazwa jednostki otrzymującej dotacje | F4: Zakres | G4: Ogółem kwota dotacji
A5: 1 | B5: 2 | C5: 3 | E5: 4 | F5: 5 | G5: 6
A6: I. Dotacje dla jednostek sektora finansów publicznych | G6: =SUM(G9) -> 300000
A7: 1 | B7: 600 | C7: 60016 | D7: 2650 | E7: Zakład Gospodarki Komunalnej w Łącznej | F7: dopłata do odśnieżania 1 km drogi | G7: 300000
A8: II. Dotacje dla jednostek spoza sektora finansów publicznych
A9: Ogółem | G9: =SUM(G7:G8) -> 300000

Sheet 13
A3: Dotacje podmiotowe w 2026 roku
F4: w złotych
A5: Lp. | B5: Dział | C5: Rozdział | D5: § | E5: Nazwa jednostki otrzymującej dotacje | F5: Kwota dotacji
A6: 1 | B6: 2 | C6: 3 | E6: 4 | F6: 5
A7: I. Dotacje dla jednostek sektora finansów publicznych | F7: =SUM(F8) -> 645000
A8: 1. | B8: 921 | C8: 92116 | D8: 2480 | E8: Gminna Instytucja kultury - biblioteka gminna w Łącznej | F8: 645000
A9: II.Dotacje dla jednostek spoza sektora finansów publicznych
A10: Ogółem | F10: =SUM(F8:F9) -> 645000

Sheet 14
A2: Dotacje celowe w 2026 roku
G3: w złotych
A4: Lp. | B4: Dział | C4: Rozdział | D4: § | E4: Nazwa zadania | F4: Jednostka otrzymująca dotację | G4: Kwota dotacji
A5: 1 | B5: 2 | C5: 3 | D5: 4 | E5: 5 | F5: 6 | G5: 7
A6: I. Dotacje dla jednostek sektora finansów publicznych | G6: =SUM(G7:G7) -> 53000
A7: 1 | B7: 600 | C7: 60004 | D7: 2310 | E7: Zadanie własne j.s.t w zakresie prowadzenia lokalnego transportu zbiorowego na terenie gminy Łączna | F7: Gmina Kielce | G7: 53000
A8: II. Dotacje dla jednostek spoza sektora finansów publicznych | G8: =SUM(G9:G9) -> 70000
A9: 4 | B9: 926 | C9: 92605 | D9: 2830 | E9: Zadania z zakresu kultury fizycznej i sportu | F9: wyłoniona w drodze konkursu | G9: 70000
A10: Ogółem | G10: =SUM(G6+G8) -> 123000
